bitfinex/quotes_BTCUSD_20240918
["timestamp","ask_amount","ask_price","bid_price","bid_amount"]
[1726654908411,0.167541,59687.0,59683.0,0.167551]
[1726654909346,0.335087,59686.0,59682.0,0.00082]
[1726654909573,0.167546,59685.0,59684.0,0.014]
[1726654909808,0.167546,59685.0,59682.0,0.00082]
[1726654909809,0.167551,59683.0,59682.0,0.00082]
[1726654910291,0.502654,59683.0,59682.0,0.00082]
[1726654911246,0.167544,59686.0,59683.0,0.014]
[1726654911568,0.167548,59685.0,59682.0,0.00082]
[1726654911779,0.00011327,59687.0,59682.0,0.00082]
[1726654911780,0.167549,59684.0,59682.0,0.00082]
[1726654912002,0.167549,59684.0,59682.0,0.01482]
[1726654912215,0.167549,59684.0,59682.0,0.00082]
[1726654912686,0.167549,59684.0,59683.0,0.014]
[1726654913416,0.167549,59684.0,59682.0,0.00082]
[1726654913647,0.335087,59686.0,59682.0,0.00082]
[1726654913868,0.167545,59686.0,59682.0,0.00082]
[1726654914119,0.167549,59684.0,59682.0,0.00082]
[1726654915030,0.335089,59686.0,59682.0,0.01482]
[1726654915031,0.167551,59683.0,59682.0,0.01482]
[1726654915724,0.167551,59683.0,59682.0,0.00082]
[1726654916168,0.335089,59686.0,59682.0,0.01482]
[1726654916399,0.167549,59684.0,59682.0,0.01482]
[1726654916636,0.167545,59686.0,59682.0,0.168374]
[1726654916869,0.00011327,59687.0,59682.0,0.182374]
[1726654916870,0.16765527,59687.0,59682.0,0.182374]
[1726654917091,0.18524114,59686.0,59682.0,0.182374]
[1726654917317,0.01769718,59685.0,59682.0,0.182374]
[1726654917554,0.01769718,59685.0,59682.0,0.01482]
[1726654917555,0.167547,59685.0,59682.0,0.01482]
[1726654917775,0.167549,59684.0,59682.0,0.01482]
[1726654918028,0.167539,59688.0,59682.0,0.01482]
[1726654918264,0.00011327,59687.0,59683.0,0.167549]
[1726654918526,0.18526863,59687.0,59683.0,0.167549]
[1726654918746,0.01772763,59686.0,59682.0,0.349929]
[1726654918981,0.18527463,59685.0,59682.0,0.00082]
[1726654919452,0.01772763,59684.0,59683.0,0.167551]
[1726654919946,0.01772763,59684.0,59683.0,0.516654]
[1726654920218,0.01772763,59684.0,59683.0,0.502654]
[1726654920452,0.01772763,59684.0,59682.0,0.01482]
[1726654920712,0.167538,59688.0,59683.0,0.16755]
[1726654920965,0.167538,59688.0,59684.0,0.167547]
[1726654920966,0.00011327,59686.0,59684.0,0.167547]
[1726654921203,0.86901,59692.0,59682.0,0.00082]
[1726654921204,0.01771772,59687.0,59682.0,0.00082]
[1726654921433,0.01771772,59687.0,59682.0,0.168373]
[1726654921660,0.01771729,59686.0,59683.0,0.16755]
[1726654921888,0.01783056,59686.0,59683.0,0.16755]
[1726654922106,0.01771729,59685.0,59683.0,0.16755]
[1726654922358,0.16764927,59689.0,59684.0,0.167548]
[1726654922587,0.00011327,59686.0,59683.0,0.014]
[1726654922944,0.16765727,59686.0,59682.0,0.168373]
[1726654923173,0.16765827,59686.0,59683.0,0.014]
[1726654923425,0.00011327,59686.0,59682.0,0.00082]
[1726654923840,0.00011327,59689.0,59684.0,0.012]
[1726654924055,0.00011327,59687.0,59682.0,0.00082]
[1726654924321,0.00011327,59689.0,59682.0,0.00082]
[1726654924991,0.00011327,59687.0,59682.0,0.00082]
[1726654925151,0.00011327,59686.0,59682.0,0.00082]
[1726654925582,0.00011327,59687.0,59683.0,0.014]
[1726654925754,0.00011327,59686.0,59682.0,0.00082]
[1726654926165,0.00011327,59686.0,59682.0,0.01282]
[1726654926379,0.00011327,59686.0,59682.0,0.00082]
[1726654926618,0.16766427,59683.0,59682.0,0.00082]
[1726654927042,1.00807027,59683.0,59682.0,0.00082]
[1726654927250,0.70167437,59683.0,59682.0,0.00082]
[1726654927452,0.70167437,59683.0,59682.0,0.01482]
[1726654927656,1.03677737,59683.0,59682.0,0.01482]
[1726654928179,1.00807027,59683.0,59682.0,0.01482]
[1726654928582,1.17112394,59683.0,59682.0,0.01482]
[1726654929156,0.83602094,59683.0,59682.0,0.01482]
[1726654929377,0.83602094,59683.0,59682.0,0.00082]
[1726654929645,1.17112394,59683.0,59682.0,0.01482]
[1726654930065,1.17112394,59683.0,59682.0,0.00082]
[1726654930492,1.17112394,59683.0,59682.0,0.00482]
[1726654933582,0.00011327,59675.0,59669.0,0.16841]
[1726654934067,0.00011327,59676.0,59669.0,0.00082]
[1726654934295,0.00011327,59674.0,59669.0,0.00082]
[1726654936419,0.00011327,59675.0,59669.0,0.168409]
[1726654937144,0.00011327,59674.0,59669.0,0.00082]
[1726654937618,0.00011327,59674.0,59669.0,0.01482]
[1726654937863,0.00011327,59674.0,59669.0,0.182411]
[1726654938080,0.00011327,59674.0,59669.0,0.168411]
[1726654938299,0.00011327,59674.0,59669.0,0.182411]
[1726654938543,0.00011327,59674.0,59669.0,0.168411]
[1726654939205,0.00011327,59674.0,59669.0,0.00082]
[1726654939445,0.00111327,59674.0,59669.0,0.01482]
[1726654939665,0.33516,59673.0,59669.0,0.01482]
[1726654939914,0.167586,59671.0,59669.0,0.01482]
[1726654940143,0.167588,59670.0,59669.0,0.01482]
[1726654940367,0.167584,59672.0,59669.0,0.01482]
[1726654940581,0.04948267,59672.0,59669.0,0.01482]
[1726654940800,0.04948267,59672.0,59669.0,0.00082]
[1726654941049,0.04948267,59673.0,59669.0,0.00082]
[1726654941284,0.04960425,59673.0,59669.0,0.01482]
[1726654941528,0.04960425,59673.0,59669.0,0.00082]
[1726654941751,0.04960425,59673.0,59672.0,0.167582]
[1726654941974,0.07440638,59674.0,59669.0,0.01482]
[1726654941975,0.04960425,59675.0,59669.0,0.182408]
[1726654942202,0.04960425,59675.0,59671.0,0.167585]
[1726654942482,0.09920851,59678.0,59669.0,0.01482]
[1726654942483,0.53490127,59670.0,59669.0,0.01482]
[1726654942704,0.96937275,59670.0,59669.0,0.01482]
[1726654942939,1.11940987,59670.0,59669.0,0.00082]
[1726654943170,1.45458587,59670.0,59669.0,0.00082]
[1726654943638,1.78976187,59670.0,59669.0,0.00082]
[1726654943867,1.45458587,59670.0,59669.0,0.00082]
[1726654944567,0.2493326,59670.0,59669.0,0.00082]
[1726654944801,0.07444006,59670.0,59669.0,0.00082]
[1726654945026,0.04962822,59671.0,59669.0,0.00082]
[1726654945515,0.001,59670.0,59669.0,0.01482]
[1726654945761,0.04962957,59672.0,59669.0,0.00082]
[1726654946270,0.001,59670.0,59669.0,0.01482]
[1726654946511,0.04962957,59672.0,59669.0,0.00082]
[1726654946752,0.00011327,59673.0,59669.0,0.01482]
[1726654946753,0.001,59670.0,59669.0,0.01482]
[1726654947001,0.001,59670.0,59669.0,0.517593]
[1726654947734,0.001,59670.0,59669.0,0.852775]
[1726654947967,0.07444436,59676.0,59672.0,0.16758]
[1726654947968,0.04062957,59675.0,59672.0,0.16758]
[1726654948191,0.04062957,59676.0,59674.0,0.167576]
[1726654948686,0.09937241,59679.0,59677.0,0.335137]
[1726654948687,0.07444436,59679.0,59677.0,0.335137]
[1726654948929,0.07444436,59680.0,59678.0,0.167565]
[1726654949151,0.10089914,59682.0,59677.0,0.335137]
[1726654949152,0.00164,59682.0,59677.0,0.335137]
[1726654949375,0.00164,59682.0,59678.0,0.167565]
[1726654949599,0.00164,59682.0,59681.0,0.837787]
[1726654952418,0.00164,59682.0,59681.0,0.516672]
[1726654952647,0.00164,59682.0,59681.0,0.502672]
[1726654952884,0.00164,59682.0,59679.0,0.167561]
[1726654953150,0.00164,59682.0,59681.0,0.181557]
[1726654953375,0.00164,59682.0,59681.0,0.502672]
[1726654954492,0.00164,59682.0,59681.0,1.00084067]
[1726654955380,0.00164,59682.0,59681.0,1.18364067]
[1726654955605,0.00164,59682.0,59681.0,1.50475567]
[1726654956016,0.00164,59682.0,59681.0,1.51875567]
[1726654956273,0.00164,59682.0,59681.0,1.60475567]
[1726654956773,0.00164,59682.0,59681.0,1.61875567]
[1726654957011,0.00164,59682.0,59681.0,1.60475567]
[1726654957242,0.00164,59682.0,59681.0,1.61875567]
[1726654957464,0.00164,59682.0,59681.0,1.28364067]
[1726654957917,0.00164,59682.0,59681.0,1.61875567]
[1726654958872,0.00164,59682.0,59681.0,1.60475567]
[1726654959119,0.00164,59682.0,59681.0,1.61875567]
[1726654959364,0.00164,59682.0,59681.0,1.60475567]
[1726654959587,0.00164,59682.0,59681.0,1.26964067]
[1726654959823,0.00164,59682.0,59681.0,1.28364067]
[1726654960330,0.00164,59682.0,59681.0,1.61875567]
[1726654960566,0.00164,59682.0,59681.0,1.60475567]
[1726654962196,0.00164,59682.0,59681.0,1.61875567]
[1726654962423,0.00164,59682.0,59681.0,1.60475567]
[1726654962648,0.00164,59682.0,59681.0,1.61875567]
[1726654963149,0.00164,59682.0,59681.0,1.60475567]
[1726654963396,0.00164,59682.0,59681.0,1.61875567]
[1726654963670,0.00164,59682.0,59681.0,1.95387067]
[1726654963916,0.00164,59682.0,59681.0,2.2542274]
[1726654964394,0.00164,59682.0,59681.0,2.5893424]
[1726654965075,0.00164,59699.0,59698.0,1.172566]
[1726654965324,0.00164,59699.0,59698.0,1.43561967]
[1726654965605,0.00164,59699.0,59698.0,1.64311967]
[1726654965820,0.00164,59699.0,59698.0,3.70898867]
[1726654966052,0.00164,59699.0,59698.0,5.06172967]
[1726654966276,0.00164,59699.0,59698.0,3.45486267]
[1726654966517,0.00164,59699.0,59698.0,2.82542667]
[1726654966749,0.00164,59699.0,59698.0,2.73017067]
[1726654966979,0.00164,59699.0,59698.0,2.00113867]
[1726654967445,0.00164,59699.0,59698.0,2.01513867]
[1726654967721,0.00164,59699.0,59698.0,2.00113867]
[1726654968717,0.00164,59699.0,59698.0,2.43965367]
[1726654969147,0.00164,59699.0,59698.0,2.45365367]
[1726654969633,0.00164,59699.0,59698.0,2.62915367]
[1726654969880,0.00164,59699.0,59698.0,2.6590404]
[1726654970123,0.00164,59699.0,59698.0,2.7050404]
[1726654970380,0.00164,59699.0,59698.0,2.7190404]
[1726654970619,0.00164,59699.0,59698.0,3.0540594]
[1726654970870,0.00164,59699.0,59698.0,4.8807034]
[1726654971608,1e-06,59708.0,59707.0,1.50736]
[1726654971854,1e-06,59708.0,59707.0,2.05512967]
[1726654972071,1e-06,59708.0,59707.0,1.95271367]
[1726654972519,1e-06,59708.0,59707.0,3.46876367]
[1726654972737,1e-06,59708.0,59707.0,3.7692654]
[1726654972969,1e-06,59708.0,59707.0,3.9924654]
[1726654973247,1e-06,59708.0,59707.0,3.9784654]
[1726654973478,1e-06,59708.0,59707.0,3.9804654]
[1726654973696,0.001644,59715.0,59714.0,1.76336673]
[1726654973917,0.001644,59715.0,59714.0,2.1673094]
[1726654974363,0.001644,59715.0,59714.0,1.9964204]
[1726654974598,0.001644,59715.0,59714.0,1.9664204]
[1726654975789,0.001644,59715.0,59714.0,2.3848504]
[1726654976702,0.00053347,59716.0,59715.0,1.66004473]
[1726654976925,0.00053347,59716.0,59715.0,2.5343184]
[1726654977368,0.00053347,59716.0,59715.0,2.5363184]
[1726654977584,0.00053347,59716.0,59715.0,2.5343184]
[1726654979131,0.00053347,59716.0,59715.0,2.5483184]
[1726654980203,0.00053347,59716.0,59715.0,2.9432424]
[1726654980417,0.00053347,59716.0,59715.0,2.9452424]
[1726654980640,0.00053347,59716.0,59715.0,2.8787034]
[1726654980924,0.00053347,59716.0,59715.0,3.0365284]
[1726654981150,0.00053347,59716.0,59715.0,2.7016044]
[1726654981366,0.00053347,59716.0,59715.0,2.6836044]
[1726654982483,0.00053347,59716.0,59715.0,2.6816044]
[1726654982744,0.00053347,59716.0,59715.0,2.2004984]
[1726654982974,0.00053347,59716.0,59715.0,2.2144984]
[1726654983428,0.00053347,59716.0,59715.0,2.2004984]
[1726654983641,0.00053347,59716.0,59715.0,2.2144984]
[1726654984782,0.00053347,59716.0,59715.0,3.3949864]
[1726654985006,0.00053347,59716.0,59715.0,3.2918904]
[1726654985225,0.00053347,59716.0,59715.0,2.4023814]
[1726654985688,0.00053347,59716.0,59715.0,2.4323814]
[1726654985917,0.00053347,59716.0,59715.0,2.4623814]
[1726654986421,0.00053347,59716.0,59715.0,2.4643814]
[1726654986634,0.00053347,59716.0,59715.0,2.4763814]
[1726654986841,0.00053347,59716.0,59715.0,2.4623814]
[1726654987066,4.7e-07,59716.0,59715.0,2.7973054]
[1726654987281,4.7e-07,59716.0,59715.0,2.6114224]
[1726654987496,4.7e-07,59716.0,59715.0,2.5974224]
[1726654987956,4.7e-07,59716.0,59715.0,2.6114224]
[1726654988171,4.7e-07,59716.0,59715.0,2.2604984]
[1726654988670,4.7e-07,59716.0,59715.0,2.2764984]
[1726654988896,4.7e-07,59716.0,59715.0,2.6114224]
[1726654989541,4.7e-07,59718.0,59717.0,2.05690773]
[1726654989753,4.7e-07,59718.0,59717.0,2.2199614]
[1726654989970,4.7e-07,59718.0,59717.0,1.8830484]
[1726654990184,4.7e-07,59718.0,59717.0,1.8230484]
[1726654990373,4.7e-07,59718.0,59717.0,1.8530484]
[1726654990627,4.7e-07,59718.0,59717.0,1.3881354]
[1726654990853,4.7e-07,59718.0,59717.0,1.35824867]
[1726654991037,4.7e-07,59718.0,59717.0,1.33524867]
[1726654991450,4.7e-07,59718.0,59717.0,1.34924867]
[1726654991900,4.7e-07,59718.0,59717.0,1.43524867]
[1726654992122,4.7e-07,59718.0,59717.0,1.11433567]
[1726654992992,4.7e-07,59718.0,59717.0,0.77942267]
[1726654993420,4.7e-07,59718.0,59717.0,1.11433567]
[1726654993847,4.7e-07,59718.0,59717.0,1.10033567]
[1726654994161,4.7e-07,59718.0,59717.0,1.43524867]
[1726654994363,4.7e-07,59718.0,59717.0,1.45824867]
[1726654994667,4.7e-07,59718.0,59717.0,1.47224867]
[1726654995536,4.7e-07,59718.0,59717.0,1.45824867]
[1726654995905,4.7e-07,59718.0,59717.0,1.4881354]
[1726654997619,4.7e-07,59718.0,59717.0,1.5021354]
[1726654997826,4.7e-07,59718.0,59717.0,0.014]
[1726654998047,0.01722549,59718.0,59715.0,0.00082]
[1726654998265,0.01722502,59717.0,59715.0,0.00082]
[1726654998483,0.01722411,59716.0,59715.0,0.168282]
[1726654998707,4.7e-07,59718.0,59715.0,0.168282]
[1726654998961,0.01722413,59716.0,59715.0,0.168282]
[1726654999176,0.19942413,59716.0,59715.0,0.00082]
[1726654999579,0.19942413,59716.0,59715.0,0.168282]
[1726655000926,0.19942413,59716.0,59715.0,0.182282]
[1726655001148,0.19942413,59716.0,59715.0,0.517206]
[1726655001404,0.19942413,59716.0,59715.0,0.503206]
[1726655001624,0.19942413,59716.0,59715.0,0.517206]
[1726655002049,0.19942413,59716.0,59715.0,0.503206]
[1726655002262,0.19942413,59716.0,59715.0,0.01482]
[1726655002478,0.19942413,59716.0,59715.0,0.168282]
[1726655003160,0.19942413,59716.0,59715.0,0.00082]
[1726655003938,0.19942413,59716.0,59715.0,0.01482]
[1726655004271,0.19942413,59716.0,59715.0,0.00082]
[1726655004411,0.70180113,59716.0,59715.0,0.00082]
[1726655004623,0.70180113,59716.0,59715.0,0.01482]
[1726655004836,1.03671913,59716.0,59715.0,0.01482]
[1726655005050,1.03671913,59716.0,59715.0,0.00082]
[1726655005289,1.5313504,59716.0,59715.0,0.01482]
[1726655005504,1.5313504,59716.0,59715.0,0.00082]
[1726655005505,1.69440407,59716.0,59715.0,0.00082]
[1726655005744,0.167507,59699.0,59685.0,0.25138471]
[1726655005976,0.1596,59703.0,59694.0,0.167519]
[1726655005977,0.01732824,59698.0,59694.0,0.167519]
[1726655006197,0.334997,59702.0,59697.0,0.167512]
[1726655006198,0.167498,59702.0,59697.0,0.167512]
[1726655006434,0.167498,59702.0,59695.0,0.335036]
[1726655006435,0.01732788,59701.0,59695.0,0.335036]
[1726655006652,0.1596,59703.0,59698.0,0.167509]
[1726655006653,0.01732788,59700.0,59698.0,0.167509]
[1726655006860,0.1596,59703.0,59697.0,0.33502]
[1726655007081,0.1596,59703.0,59700.0,0.167501]
[1726655007082,0.01731236,59702.0,59700.0,0.167501]
[1726655007307,0.00011327,59705.0,59700.0,0.837517]
[1726655007542,0.0173131,59704.0,59703.0,0.167495]
[1726655007813,0.02627504,59704.0,59703.0,0.167495]
[1726655008203,0.02627504,59704.0,59703.0,0.502486]
[1726655008419,0.00011327,59706.0,59704.0,0.167491]
[1726655009281,0.00011327,59706.0,59705.0,0.16749]
[1726655009698,0.00011327,59706.0,59700.0,0.335006]
[1726655009910,0.00011327,59706.0,59703.0,0.167494]
[1726655010365,0.00011327,59706.0,59703.0,0.168314]
[1726655010574,0.00011327,59706.0,59703.0,0.00082]
[1726655010989,0.00011327,59706.0,59704.0,0.014]
[1726655011197,0.00011327,59706.0,59703.0,0.00082]
[1726655011679,0.00011327,59706.0,59703.0,0.01482]
[1726655011909,0.00011327,59706.0,59703.0,0.00082]
[1726655012125,0.00011327,59706.0,59704.0,0.16305367]
[1726655012336,0.02638798,59706.0,59704.0,0.014]
[1726655012543,0.19387598,59706.0,59704.0,0.014]
[1726655012755,0.19387598,59706.0,59703.0,0.00082]
[1726655013200,0.02638798,59706.0,59703.0,0.00082]
[1726655013411,0.02638798,59706.0,59703.0,0.168314]
[1726655013870,0.00011327,59706.0,59703.0,0.168314]
[1726655014310,0.00011327,59706.0,59703.0,0.182314]
[1726655014528,0.00011327,59706.0,59703.0,0.00082]
[1726655014953,0.18231327,59716.0,59713.0,0.167465]
[1726655015173,0.18231327,59716.0,59704.0,0.16305367]
[1726655015174,0.00011327,59714.0,59710.0,0.167474]
[1726655015385,0.00011327,59714.0,59705.0,0.334974]
[1726655015625,0.00011327,59714.0,59708.0,0.167481]
[1726655015626,0.167468,59713.0,59708.0,0.167481]
[1726655015843,0.167468,59713.0,59703.0,0.168315]
[1726655015844,0.00011327,59711.0,59703.0,0.168315]
[1726655016055,0.51712,59716.0,59703.0,0.168315]
[1726655016056,0.33507327,59709.0,59703.0,0.00082]
[1726655016271,0.00011327,59709.0,59703.0,0.00082]
[1726655016494,0.334965,59708.0,59703.0,0.00082]
[1726655016708,0.167492,59704.0,59703.0,0.00082]
[1726655017114,1.17256027,59704.0,59703.0,0.00082]
[1726655017334,1.3741046,59704.0,59703.0,0.00082]
[1726655018215,0.2016576,59704.0,59703.0,0.00082]
[1726655018439,0.00011327,59706.0,59703.0,0.00082]
[1726655018659,0.02627327,59708.0,59703.0,0.00082]
[1726655018660,0.0172964,59704.0,59703.0,0.01082]
[1726655018874,0.01729591,59704.0,59703.0,0.01082]
[1726655019095,0.00011327,59704.0,59703.0,0.00082]
[1726655019308,0.00011327,59704.0,59703.0,0.01482]
[1726655019747,0.00011327,59704.0,59703.0,0.00082]
[1726655020169,0.00011327,59704.0,59703.0,0.168313]
[1726655020381,0.00011327,59704.0,59703.0,0.00082]
[1726655020590,0.00011327,59704.0,59703.0,0.168315]
[1726655021042,0.00011327,59704.0,59703.0,0.00082]
[1726655021258,0.00011327,59704.0,59703.0,0.01482]
[1726655021467,0.00011327,59704.0,59703.0,0.00082]
[1726655021882,0.00011327,59704.0,59703.0,0.01482]
[1726655022334,0.02638895,59704.0,59703.0,0.01482]
[1726655023561,0.02638895,59704.0,59703.0,0.182315]
[1726655025729,0.02627568,59704.0,59703.0,0.517306]
[1726655025934,0.02638895,59704.0,59703.0,0.517306]
[1726655026307,0.02627568,59704.0,59703.0,0.852297]
[1726655026722,0.00011327,59710.0,59708.0,0.167479]
[1726655026934,0.00011327,59709.0,59708.0,0.167481]
[1726655027815,0.00011327,59709.0,59706.0,0.167485]
[1726655028015,0.00011327,59709.0,59708.0,0.014]
[1726655028520,0.00011327,59709.0,59707.0,0.167484]
[1726655028717,0.00011327,59709.0,59708.0,0.014]
[1726655028931,0.33507027,59709.0,59708.0,0.014]
[1726655029143,0.66584827,59709.0,59708.0,0.014]
[1726655029396,1.50081594,59709.0,59708.0,0.014]
[1726655029605,1.50081594,59709.0,59703.0,0.00082]
[1726655029606,0.837462,59704.0,59703.0,0.00082]
[1726655029822,0.83757527,59704.0,59703.0,0.00082]
[1726655032098,0.84769405,59704.0,59703.0,0.00082]
[1726655032282,0.51270905,59704.0,59703.0,0.01482]
[1726655032749,0.53898633,59704.0,59703.0,0.01482]
[1726655032973,0.53898633,59704.0,59703.0,0.00082]
[1726655033459,0.53898633,59704.0,59703.0,0.00982]
[1726655034805,0.53898633,59704.0,59703.0,0.00082]
[1726655035227,0.53898633,59704.0,59703.0,0.01482]
[1726655035727,0.51270905,59704.0,59703.0,0.01482]
[1726655036172,0.84769405,59704.0,59703.0,0.01482]
[1726655036356,0.51270905,59704.0,59703.0,0.01482]
[1726655036993,0.17772405,59704.0,59703.0,0.01482]
[1726655037845,0.01023205,59704.0,59703.0,0.01482]
[1726655038058,0.51270905,59704.0,59703.0,0.01482]
[1726655038695,0.17772405,59704.0,59703.0,0.01482]
[1726655038923,0.03650835,59704.0,59703.0,0.01482]
[1726655039137,0.01011878,59704.0,59703.0,0.182315]
[1726655040261,0.01011878,59704.0,59703.0,0.517306]
[1726655041421,0.01011878,59704.0,59703.0,0.852297]
[1726655041634,0.01011878,59704.0,59703.0,0.503306]
[1726655041875,0.01011878,59704.0,59703.0,0.01482]
[1726655042856,0.17761078,59704.0,59703.0,0.00082]
[1726655043086,0.51270905,59704.0,59703.0,0.01482]
[1726655043322,0.51270905,59704.0,59703.0,0.00082]
[1726655043564,0.56227274,59704.0,59703.0,0.00082]
[1726655044030,0.84769405,59704.0,59703.0,0.00082]
[1726655044260,0.51270905,59704.0,59703.0,0.00082]
[1726655044489,0.84769405,59704.0,59703.0,0.00082]
[1726655044753,0.92203958,59704.0,59703.0,0.00082]
[1726655045007,1.2049071,59704.0,59703.0,0.01482]
[1726655045262,1.10577972,59704.0,59703.0,0.00082]
[1726655045512,1.10577972,59704.0,59703.0,0.01482]
[1726655045774,1.23003463,59704.0,59703.0,0.01482]
[1726655046756,0.77079472,59704.0,59703.0,0.01482]
[1726655046988,1.10577972,59704.0,59703.0,0.01482]
[1726655047741,1.20375794,59704.0,59703.0,0.01482]
[1726655047977,0.86877294,59704.0,59703.0,0.01482]
[1726655048207,0.86868667,59704.0,59703.0,0.01482]
[1726655048695,0.86872636,59704.0,59703.0,0.01482]
[1726655049616,0.74437957,59704.0,59703.0,0.01482]
[1726655050093,1.07936457,59704.0,59703.0,0.01482]
[1726655050322,0.74437957,59704.0,59703.0,0.01482]
[1726655050958,0.74447228,59704.0,59703.0,0.01482]
[1726655051198,1.10573351,59704.0,59703.0,0.01482]
[1726655051622,1.10573351,59704.0,59703.0,0.00082]
[1726655051822,1.10573351,59704.0,59703.0,0.01482]
[1726655052257,1.10573351,59704.0,59703.0,0.00082]
[1726655052638,1.10573351,59704.0,59703.0,0.01482]
[1726655052639,0.77074851,59704.0,59703.0,0.01482]
[1726655052867,1.10573351,59704.0,59703.0,0.01482]
[1726655054419,0.77074851,59704.0,59703.0,0.01482]
[1726655054877,1.10573351,59704.0,59703.0,0.01482]
[1726655055147,0.77074851,59704.0,59703.0,0.01482]
[1726655055377,1.10573351,59704.0,59703.0,0.01482]
[1726655057433,1.10723627,59704.0,59703.0,0.01482]
[1726655059098,1.10723627,59704.0,59703.0,0.00082]
[1726655059343,1.08096004,59704.0,59703.0,0.00082]
[1726655059809,1.08096004,59704.0,59703.0,0.01482]
[1726655060734,1.08096004,59704.0,59703.0,0.00082]
[1726655062158,1.08065089,59704.0,59703.0,0.00082]
[1726655062388,1.08065089,59704.0,59703.0,0.01482]
[1726655062620,1.22977579,59704.0,59703.0,0.00082]
[1726655063111,1.22977579,59704.0,59703.0,0.01482]
[1726655063851,1.25605222,59704.0,59703.0,0.01482]
[1726655064594,1.10692732,59704.0,59703.0,0.01482]
[1726655065662,1.10692732,59704.0,59703.0,0.00082]
[1726655065896,1.10692732,59704.0,59703.0,0.01482]
[1726655066163,1.10692732,59704.0,59703.0,0.00082]
[1726655066403,1.10692732,59704.0,59703.0,0.01482]
[1726655068096,0.26946532,59704.0,59703.0,0.01482]
[1726655068580,0.24307562,59704.0,59703.0,0.852297]
[1726655068846,0.08470391,59704.0,59703.0,1.17475067]
[1726655069105,0.05984496,59704.0,59703.0,1.50974167]
[1726655069562,0.01011878,59704.0,59703.0,1.50974167]
[1726655069788,0.01011878,59704.0,59703.0,1.49574167]
[1726655070023,0.01011878,59704.0,59703.0,1.50974167]
[1726655070531,0.01011878,59704.0,59703.0,1.49574167]
[1726655070791,0.01011878,59704.0,59703.0,1.50974167]
[1726655071024,0.01011878,59704.0,59703.0,1.60974167]
[1726655072664,0.01011878,59704.0,59703.0,1.59574167]
[1726655073178,0.01011878,59704.0,59703.0,1.60974167]
[1726655073428,0.01011878,59704.0,59703.0,1.59574167]
[1726655073656,0.01011878,59704.0,59703.0,1.60974167]
[1726655076483,0.01011878,59704.0,59703.0,2.1799194]
[1726655078157,0.01011878,59704.0,59703.0,2.2099194]
[1726655078400,0.01011878,59704.0,59703.0,5.2194864]
[1726655078643,0.01011878,59704.0,59703.0,5.2086254]
[1726655078869,0.01011878,59704.0,59703.0,5.1983804]
[1726655079119,0.01011878,59704.0,59703.0,5.2123804]
[1726655079339,0.00164,59715.0,59714.0,1.272251]
[1726655079590,0.00164,59715.0,59714.0,1.59830467]
[1726655079831,0.00164,59715.0,59714.0,1.93323367]
[1726655080273,0.00164,59715.0,59714.0,1.95623367]
[1726655082065,0.00164,59715.0,59714.0,1.97023367]
[1726655082307,0.00164,59715.0,59714.0,1.95623367]
[1726655082767,0.00164,59715.0,59714.0,1.97023367]
[1726655082990,0.00164,59715.0,59714.0,1.9861204]
[1726655083224,0.00164,59715.0,59714.0,2.0001204]
[1726655083677,0.00164,59715.0,59714.0,1.9861204]
[1726655083894,0.00164,59715.0,59714.0,2.0001204]
[1726655084110,0.00112626,59715.0,59714.0,2.0001204]
[1726655085223,0.00112626,59715.0,59714.0,1.9861204]
[1726655085715,0.00112626,59715.0,59714.0,2.0001204]
[1726655085937,0.00112626,59715.0,59714.0,1.9861204]
[1726655086203,0.00112626,59715.0,59714.0,2.0001204]
[1726655086641,0.00112626,59715.0,59714.0,1.9861204]
[1726655086857,0.00112626,59715.0,59714.0,2.0001204]
[1726655087075,0.00112626,59715.0,59714.0,1.9861204]
[1726655089720,0.00112626,59715.0,59714.0,2.0001204]
[1726655089940,0.00112626,59715.0,59714.0,1.9861204]
[1726655090394,0.00112626,59715.0,59714.0,2.0001204]
[1726655093992,0.00112626,59715.0,59714.0,1.97023367]
[1726655094216,0.00112626,59715.0,59714.0,1.44930467]
[1726655094648,0.00112626,59715.0,59714.0,1.43530467]
[1726655095094,0.00112626,59715.0,59714.0,1.45012467]
[1726655096509,0.00112626,59715.0,59714.0,1.43612467]
[1726655096968,0.00112626,59715.0,59714.0,1.45012467]
[1726655097208,0.00112626,59715.0,59714.0,1.43612467]
[1726655098141,0.00112626,59715.0,59714.0,1.45012467]
[1726655103570,0.00112626,59715.0,59714.0,1.28266067]
[1726655104436,0.00112626,59715.0,59714.0,1.45012467]
[1726655108431,0.00112626,59715.0,59714.0,1.11519567]
[1726655108653,0.52080619,59715.0,59714.0,0.01482]
[1726655108925,0.85573019,59715.0,59714.0,0.01482]
[1726655109149,1.35426746,59715.0,59714.0,0.01482]
[1726655109364,1.55416746,59715.0,59714.0,0.01482]
[1726655109589,1.60367977,59715.0,59714.0,0.01482]
[1726655109800,1.60367977,59715.0,59703.0,0.00082]
[1726655109801,0.66609027,59704.0,59703.0,0.00082]
[1726655110041,0.6833842,59704.0,59703.0,0.00082]
[1726655110516,0.68327093,59704.0,59703.0,0.00082]
[1726655110728,0.6833842,59704.0,59703.0,0.00082]
[1726655111407,0.68377005,59704.0,59703.0,0.00782]
[1726655111623,0.68377005,59704.0,59703.0,0.00082]
[1726655112053,0.68377005,59704.0,59703.0,0.00682]
[1726655113159,1.04503052,59704.0,59703.0,0.00682]
[1726655113383,1.04503052,59704.0,59703.0,0.00082]
[1726655113816,1.04603052,59704.0,59703.0,0.00682]
[1726655114736,1.04501146,59704.0,59703.0,0.00082]
[1726655114949,1.04501146,59704.0,59703.0,0.00582]
[1726655115467,1.04501146,59704.0,59703.0,0.00082]
[1726655116152,1.01873599,59704.0,59703.0,0.00082]
[1726655117019,1.01973599,59704.0,59703.0,0.01482]
[1726655117500,0.68475099,59704.0,59703.0,0.01482]
[1726655117715,0.52125099,59704.0,59703.0,0.01482]
[1726655117944,0.52125099,59704.0,59703.0,0.00082]
[1726655117945,0.52025099,59704.0,59703.0,0.00082]
[1726655118199,0.52125099,59704.0,59703.0,0.00182]
[1726655118429,0.52122605,59704.0,59703.0,0.00182]
[1726655118650,0.52022605,59704.0,59703.0,0.00082]
[1726655119142,0.52122605,59704.0,59703.0,0.00182]
[1726655119572,0.85621105,59704.0,59703.0,0.00182]
[1726655119791,0.52122605,59704.0,59703.0,0.00182]
[1726655120222,0.52022605,59704.0,59703.0,0.00082]